fUSD/lending_fUSD_20250308
["ID","MTS","AMOUNT","RATE_DAILY","PERIOD"]
[355687826,1741459831873,-237.49495401,8.722e-05,2]
[355687827,1741459831883,-165.2,8.784e-05,2]
[355687828,1741459831893,-250.0,9.025e-05,2]
[355687829,1741459831903,-300.0,9.04e-05,2]
[355687830,1741459831912,-550.0,9.041e-05,2]
[355687831,1741459831922,-150.0,9.041e-05,2]
[355687832,1741459831931,-550.0,9.041e-05,2]
[355687833,1741459831941,-150.0,9.041e-05,2]
[355687834,1741459831950,-2100.0,9.2e-05,3]
[355687835,1741459831960,-325.23051521,9.2e-05,2]
[355687837,1741459831972,-2174.76948479,9.2e-05,2]
[355687838,1741459831983,-150.0,9.298e-05,2]
[355687839,1741459831995,-500.0,9.299e-05,2]
[355687840,1741459832005,-130.73319909,9.299e-05,2]
[355687841,1741459832017,-369.26680091,9.299e-05,2]
[355687842,1741459832027,-109.04908295,9.299e-05,2]
[355687843,1741459832071,-409.02859207,9.299e-05,2]
[355687845,1741459832080,-343.17140792,9.299e-05,2]
[355687847,1741459832094,-156.82859208,9.299e-05,2]
[355687849,1741459832103,-500.0,9.299e-05,2]
[355687851,1741459832113,-187.91433616,9.299e-05,2]
[355687853,1741459832122,-393.25707176,9.299e-05,2]
[355687856,1741459832147,-106.74292824,9.299e-05,2]
[355687858,1741459832156,-500.0,9.299e-05,2]
[355687860,1741459832166,-3418.39,9.299e-05,2]
[355687863,1741459832176,-933.22,9.299e-05,2]
[355687865,1741459832185,-500.0,9.299e-05,2]
[355687866,1741459832195,-500.0,9.299e-05,2]
[355687869,1741459832205,-865.88,9.299e-05,2]
[355687871,1741459832215,-500.0,9.299e-05,2]
[355687873,1741459832225,-1021.09,9.299e-05,2]
[355687876,1741459832235,-842.52,9.299e-05,2]
[355687879,1741459832246,-500.0,9.299e-05,2]
[355687882,1741459832255,-559.41,9.299e-05,2]
[355687885,1741459832265,-730.38,9.299e-05,2]
[355687887,1741459832275,-1465.62,9.299e-05,2]
[355687889,1741459832284,-534.19,9.299e-05,2]
[355687891,1741459832297,-1437.44,9.299e-05,2]
[355687893,1741459832310,-500.0,9.299e-05,2]
[355687894,1741459832319,-500.0,9.299e-05,2]
[355687896,1741459832329,-1190.01,9.299e-05,2]
[355687897,1741459832338,-500.0,9.299e-05,2]
[355687898,1741459832347,-500.0,9.299e-05,2]
[355687899,1741459832356,-500.0,9.299e-05,2]
[355687900,1741459832370,-897.98,9.299e-05,2]
[355687901,1741459832380,-848.71,9.299e-05,2]
[355687902,1741459832390,-2274.6,9.299e-05,2]
[355687903,1741459832402,-500.0,9.299e-05,2]
[355687904,1741459832411,-717.75,9.299e-05,2]
[355687905,1741459832421,-2650.36,9.299e-05,2]
[355687906,1741459832430,-560.48,9.299e-05,2]
[355687907,1741459832441,-500.0,9.299e-05,2]
[355687908,1741459832450,-936.1,9.299e-05,2]
[355687909,1741459832460,-471.63569079,9.299e-05,2]
[355687910,1741459832470,-1011.52,9.299e-05,2]
[355687911,1741459832480,-500.0,9.299e-05,2]
[355687912,1741459832490,-677.18,9.299e-05,2]
[355687913,1741459832499,-500.0,9.299e-05,2]
[355687914,1741459832511,-500.0,9.299e-05,2]
[355687915,1741459832521,-4624.82,9.299e-05,2]
[355687916,1741459832531,-500.0,9.299e-05,2]
[355687917,1741459832540,-804.46,9.299e-05,2]
[355687918,1741459832550,-500.0,9.299e-05,2]
[355687919,1741459832559,-205.62800204,9.299e-05,2]
[355687920,1741459832569,-825.34,9.299e-05,2]
[355687921,1741459832579,-500.0,9.299e-05,2]
[355687922,1741459832588,-981.35,9.299e-05,2]
[355687923,1741459832598,-1013.65,9.299e-05,2]
[355687924,1741459832607,-835.59,9.299e-05,2]
[355687925,1741459832617,-1036.23,9.299e-05,2]
[355687926,1741459832626,-500.0,9.299e-05,2]
[355687927,1741459832636,-500.0,9.299e-05,2]
[355687928,1741459832645,-1200.12,9.299e-05,2]
[355687929,1741459832655,-1162.09,9.299e-05,2]
[355687930,1741459832665,-500.0,9.299e-05,2]
[355687931,1741459832675,-1213.53959396,9.299e-05,2]
[355687953,1741459837535,-1064.22040604,9.299e-05,2]
[355687954,1741459837544,-500.0,9.299e-05,2]
[355687955,1741459837554,-126.65337048,9.299e-05,2]
[355687956,1741459837566,-929.4124,9.299e-05,2]
[355687960,1741459837592,-148.81422952,9.299e-05,2]
[355687962,1741459837601,-834.16,9.299e-05,2]
[355687963,1741459837611,-295.53021294,9.299e-05,2]
[355687964,1741459837622,-403.3,9.299e-05,2]
[355687965,1741459837633,-494.58978706,9.299e-05,2]
[355687966,1741459837642,-500.0,9.299e-05,2]
[355687967,1741459837651,-830.13,9.299e-05,2]
[355687968,1741459837660,-500.0,9.299e-05,2]
[355687969,1741459837669,-865.71672248,9.299e-05,2]
[355687970,1741459837732,-1647.75327752,9.299e-05,2]
[355687971,1741459837741,-500.0,9.299e-05,2]
[355687972,1741459837751,-549.62,9.299e-05,2]
[355687973,1741459837760,-500.0,9.299e-05,2]
[355687974,1741459837770,-500.0,9.299e-05,2]
[355687975,1741459837780,-500.0,9.299e-05,2]
[355687976,1741459837789,-500.0,9.299e-05,2]
[355687977,1741459837799,-2986.63646248,9.299e-05,2]
[355687978,1741459837811,-1587.15353752,9.299e-05,2]
[355687980,1741459837821,-510.55,9.299e-05,2]
[355687982,1741459837832,-1871.44,9.299e-05,2]
[355687984,1741459837846,-2063.3,9.299e-05,2]
[355687985,1741459837855,-545.15,9.299e-05,2]
[355687986,1741459837865,-550.62,9.299e-05,2]
[355687987,1741459837875,-504.6,9.299e-05,2]
[355687988,1741459837890,-500.0,9.299e-05,2]
[355687989,1741459837908,-985.03,9.299e-05,2]
[355687990,1741459837918,-655.62,9.299e-05,2]
[355687991,1741459837928,-285.44286378,9.299e-05,2]
[355687992,1741459837939,-214.55713622,9.299e-05,2]
[355687993,1741459837948,-515.48,9.299e-05,2]
[355687994,1741459837957,-500.0,9.299e-05,2]
[355687995,1741459837966,-500.0,9.299e-05,2]
[355687996,1741459837976,-512.16522572,9.299e-05,2]
[355687997,1741459837986,-749.58,9.299e-05,2]
[355687998,1741459837995,-500.0,9.299e-05,2]
[355687999,1741459838005,-500.0,9.299e-05,2]
[355688000,1741459838014,-3275.96,9.299e-05,2]
[355688001,1741459838024,-978.55,9.299e-05,2]
[355688002,1741459838034,-500.0,9.299e-05,2]
[355688003,1741459838043,-38732.68896695,9.3e-05,2]
[355688004,1741459838055,-314129.70443133,9.3e-05,2]
[355688005,1741459838065,-4200.0,9.3e-05,3]
[355688006,1741459838074,-162.25770135,9.3e-05,2]
[355688007,1741459838083,-638.22232565,9.3e-05,2]
[355688008,1741459838093,-460.15,9.313e-05,2]
[355688009,1741459838102,-3376.04869375,9.335e-05,2]
[355688010,1741459838112,-162.25770135,9.37e-05,2]
[355688011,1741459838121,-9122.62037372,9.38e-05,2]
[355688012,1741459838131,-6901.0956,9.381e-05,2]
[355688013,1741459838140,-13357.989,9.381e-05,2]
[355688014,1741459838149,-517.7225,9.399e-05,2]
[355688015,1741459838159,-8509.5424,9.399e-05,2]
[355688016,1741459838169,-95918.6206,9.399e-05,2]
[355688017,1741459838179,-6300.0,9.4e-05,3]
[355688018,1741459838188,-162.25770135,9.44e-05,2]
[355688019,1741459838197,-500.0,9.499e-05,2]
[355688020,1741459838207,-500.0,9.499e-05,2]
[355688021,1741459838217,-500.0,9.499e-05,2]
[355688022,1741459838227,-500.0,9.499e-05,2]
[355688023,1741459838236,-500.0,9.499e-05,2]
[355688024,1741459838246,-500.0,9.499e-05,2]
[355688025,1741459838255,-500.0,9.499e-05,2]
[355688026,1741459838265,-500.0,9.499e-05,2]
[355688028,1741459838276,-422.65054197,9.499e-05,2]
[355688030,1741459838285,-500.0,9.499e-05,2]
[355688032,1741459838294,-500.0,9.499e-05,2]
[355688034,1741459838304,-505.21299778,9.499e-05,2]
[355688036,1741459838313,-500.0,9.499e-05,2]
[355688038,1741459838323,-500.0,9.499e-05,2]
[355688040,1741459838333,-500.0,9.499e-05,2]
[355688042,1741459838342,-500.0,9.499e-05,2]
[355688044,1741459838351,-500.0,9.499e-05,2]
[355688045,1741459838361,-500.0,9.499e-05,2]
[355688046,1741459838370,-547.66,9.499e-05,2]
[355688047,1741459838380,-500.0,9.499e-05,2]
[355688048,1741459838389,-500.0,9.499e-05,2]
[355688049,1741459838403,-500.0,9.499e-05,2]
[355688050,1741459838413,-500.0,9.499e-05,2]
[355688051,1741459838422,-500.0,9.499e-05,2]
[355688052,1741459838432,-500.0,9.499e-05,2]
[355688053,1741459838442,-500.0,9.499e-05,2]
[355688054,1741459838452,-500.0,9.499e-05,2]
[355688055,1741459838461,-500.0,9.499e-05,2]
[355688056,1741459838470,-500.0,9.499e-05,2]
[355688057,1741459838479,-500.0,9.499e-05,2]
[355688058,1741459838489,-500.0,9.499e-05,2]
[355688059,1741459838499,-500.0,9.499e-05,2]
[355688060,1741459838515,-500.0,9.499e-05,2]
[355688061,1741459838525,-500.0,9.499e-05,2]
[355688062,1741459838536,-623.67,9.499e-05,2]
[355688063,1741459838545,-500.0,9.499e-05,2]
[355688064,1741459838554,-500.0,9.499e-05,2]
[355688065,1741459838564,-500.0,9.499e-05,2]
[355688066,1741459838573,-500.0,9.499e-05,2]
[355688067,1741459838583,-500.0,9.499e-05,2]
[355688068,1741459838593,-500.0,9.499e-05,2]
[355688069,1741459838603,-500.0,9.499e-05,2]
[355688070,1741459838613,-500.0,9.499e-05,2]
[355688071,1741459838622,-500.0,9.499e-05,2]
[355688072,1741459838632,-500.0,9.499e-05,2]
[355688073,1741459838641,-500.0,9.499e-05,2]
[355688074,1741459838650,-500.0,9.499e-05,2]
[355688075,1741459838659,-500.0,9.499e-05,2]
[355688076,1741459838669,-500.0,9.499e-05,2]
[355688077,1741459838679,-500.0,9.499e-05,2]
[355688078,1741459838688,-500.0,9.499e-05,2]
[355688079,1741459838699,-500.0,9.499e-05,2]
[355688080,1741459838709,-500.0,9.499e-05,2]
[355688081,1741459838718,-8400.0,9.5e-05,3]
[355688082,1741459838727,-162.25770135,9.51e-05,2]
[355688083,1741459838736,-8447.54322217,9.516e-05,2]
[355688084,1741459838745,-150.0,9.562e-05,7]
[355688085,1741459838754,-500.0,9.573e-05,2]
[355688086,1741459838764,-933.22,9.573e-05,2]
[355688087,1741459838774,-500.0,9.573e-05,2]
[355688088,1741459838784,-500.0,9.573e-05,2]
[355688089,1741459838793,-865.88,9.573e-05,2]
[355688090,1741459838803,-842.52,9.573e-05,2]
[355688091,1741459838812,-559.41,9.573e-05,2]
[355688092,1741459838822,-730.38,9.573e-05,2]
[355688093,1741459838831,-1465.62,9.573e-05,2]
[355688094,1741459838841,-534.19,9.573e-05,2]
[355688095,1741459838851,-1437.44,9.573e-05,2]
[355688096,1741459838861,-500.0,9.573e-05,2]
[355688097,1741459838871,-500.0,9.573e-05,2]
[355688098,1741459838881,-1190.01,9.573e-05,2]
[355688099,1741459838891,-500.0,9.573e-05,2]
[355688100,1741459838900,-500.0,9.573e-05,2]
[355688101,1741459838911,-500.0,9.573e-05,2]
[355688102,1741459838922,-897.98,9.573e-05,2]
[355688103,1741459838932,-848.71,9.573e-05,2]
[355688104,1741459838942,-2274.6,9.573e-05,2]
[355688105,1741459838951,-500.0,9.573e-05,2]
[355688106,1741459838961,-717.75,9.573e-05,2]
[355688107,1741459838970,-2650.36,9.573e-05,2]
[355688108,1741459838980,-560.48,9.573e-05,2]
[355688109,1741459838990,-237.71977723,9.573e-05,2]
[355688110,1741459838999,-936.1,9.573e-05,2]
[355688111,1741459839009,-1011.52,9.573e-05,2]
[355688112,1741459839020,-500.0,9.573e-05,2]
[355688113,1741459839030,-677.18,9.573e-05,2]
[355688114,1741459839041,-500.0,9.573e-05,2]
[355688115,1741459839051,-4624.82,9.573e-05,2]
[355688116,1741459839261,-500.0,9.573e-05,2]
[355688117,1741459839275,-804.46,9.573e-05,2]
[355688118,1741459839286,-500.0,9.573e-05,2]
[355688119,1741459839296,-825.34,9.573e-05,2]
[355688120,1741459839306,-500.0,9.573e-05,2]
[355688121,1741459839317,-981.35,9.573e-05,2]
[355688122,1741459839327,-1013.65,9.573e-05,2]
[355688124,1741459839337,-835.59,9.573e-05,2]
[355688126,1741459839347,-1036.23,9.573e-05,2]
[355688127,1741459839361,-500.0,9.573e-05,2]
[355688128,1741459839370,-500.0,9.573e-05,2]
[355688129,1741459839380,-1200.12,9.573e-05,2]
[355688130,1741459839391,-1162.09,9.573e-05,2]
[355688131,1741459839402,-500.0,9.573e-05,2]
[355688132,1741459839413,-2277.76,9.573e-05,2]
[355688133,1741459839423,-500.0,9.573e-05,2]
[355688134,1741459839433,-1204.88,9.573e-05,2]
[355688135,1741459839443,-834.16,9.573e-05,2]
[355688137,1741459839451,-1193.42,9.573e-05,2]
[355688138,1741459839461,-500.0,9.573e-05,2]
[355688139,1741459839471,-830.13,9.573e-05,2]
[355688140,1741459839482,-2513.47,9.573e-05,2]
[355688141,1741459839491,-500.0,9.573e-05,2]
[355688142,1741459839502,-549.62,9.573e-05,2]
[355688143,1741459839512,-500.0,9.573e-05,2]
[355688144,1741459839523,-500.0,9.573e-05,2]
[355688145,1741459839533,-500.0,9.573e-05,2]
[355688146,1741459839543,-4573.79,9.573e-05,2]
[355688147,1741459839553,-510.55,9.573e-05,2]
[355688148,1741459839563,-1871.44,9.573e-05,2]
[355688149,1741459839573,-2063.3,9.573e-05,2]
[355688150,1741459839582,-545.15,9.573e-05,2]
[355688151,1741459839592,-550.62,9.573e-05,2]
[355688152,1741459839602,-504.6,9.573e-05,2]
[355688153,1741459839611,-500.0,9.573e-05,2]
[355688154,1741459839621,-985.03,9.573e-05,2]
[355688155,1741459839630,-655.62,9.573e-05,2]
[355688156,1741459839640,-500.0,9.573e-05,2]
[355688157,1741459839650,-515.48,9.573e-05,2]
[355688158,1741459839660,-500.0,9.573e-05,2]
[355688159,1741459839669,-749.58,9.573e-05,2]
[355688160,1741459839679,-3275.96,9.573e-05,2]
[355688161,1741459839689,-978.55,9.573e-05,2]
[355688162,1741459839699,-605.5468592,9.573e-05,2]
[355688163,1741459839708,-162.25770135,9.58e-05,2]
[355688164,1741459839717,-10500.0,9.6e-05,3]
[355688165,1741459839726,-1000.0,9.602e-05,2]
[355688166,1741459839736,-4137.59495303,9.631e-05,2]
[355688167,1741459839745,-162.25770135,9.65e-05,2]
[355688168,1741459839755,-5000.0,9.654e-05,2]
[355688169,1741459839764,-500.0,9.669e-05,2]
[355688170,1741459839774,-500.0,9.669e-05,2]
[355688171,1741459839784,-500.0,9.669e-05,2]
[355688172,1741459839793,-596.5,9.669e-05,2]
[355688173,1741459839803,-500.0,9.669e-05,2]
[355688174,1741459839812,-500.0,9.669e-05,2]
[355688175,1741459839821,-500.0,9.669e-05,2]
[355688176,1741459839830,-500.0,9.669e-05,2]
[355688177,1741459839839,-500.0,9.669e-05,2]
[355688178,1741459839849,-500.0,9.669e-05,2]
[355688179,1741459839859,-500.0,9.669e-05,2]
[355688180,1741459839868,-500.0,9.669e-05,2]
[355688181,1741459839878,-500.0,9.669e-05,2]
[355688182,1741459839887,-500.0,9.669e-05,2]
[355688183,1741459839897,-500.0,9.669e-05,2]
[355688184,1741459839906,-500.0,9.669e-05,2]
[355688185,1741459839916,-500.0,9.669e-05,2]
[355688186,1741459839925,-500.0,9.669e-05,2]
[355688187,1741459839934,-500.0,9.669e-05,2]
[355688189,1741459839944,-649.53817386,9.669e-05,2]
[355688191,1741459839953,-500.0,9.669e-05,2]
[355688193,1741459839962,-500.0,9.669e-05,2]
[355688195,1741459839972,-500.0,9.669e-05,2]
[355688197,1741459839982,-500.0,9.669e-05,2]
[355688199,1741459839991,-501.9,9.669e-05,2]
[355688201,1741459840001,-500.0,9.669e-05,2]
[355688203,1741459840011,-500.0,9.669e-05,2]
[355688205,1741459840020,-500.0,9.669e-05,2]
[355688207,1741459840029,-500.0,9.669e-05,2]
[355688209,1741459840039,-500.0,9.669e-05,2]
[355688211,1741459840048,-500.0,9.669e-05,2]
[355688213,1741459840058,-500.0,9.669e-05,2]
[355688215,1741459840067,-500.0,9.669e-05,2]
[355688217,1741459840077,-639.80394031,9.669e-05,2]
[355688219,1741459840086,-500.0,9.669e-05,2]
[355688221,1741459840096,-500.0,9.669e-05,2]
[355688222,1741459840105,-500.0,9.669e-05,2]
[355688224,1741459840114,-500.0,9.669e-05,2]
[355688226,1741459840123,-330.72018907,9.669e-05,2]
[355688228,1741459840132,-500.0,9.669e-05,2]
[355688230,1741459840142,-500.0,9.669e-05,2]
[355688232,1741459840152,-500.0,9.669e-05,2]
[355688234,1741459840162,-500.0,9.669e-05,2]
[355688236,1741459840171,-500.0,9.669e-05,2]
[355688238,1741459840182,-500.0,9.669e-05,2]
[355688239,1741459840192,-500.0,9.669e-05,2]
[355688240,1741459840201,-612.04,9.669e-05,2]
[355688241,1741459840211,-500.0,9.669e-05,2]
[355688242,1741459840221,-535.51,9.669e-05,2]
[355688243,1741459840230,-500.0,9.669e-05,2]
[355688244,1741459840239,-695.56,9.669e-05,2]
[355688245,1741459840250,-616.82,9.669e-05,2]
[355688246,1741459840259,-500.0,9.669e-05,2]
[355688247,1741459840269,-500.0,9.669e-05,2]
[355688248,1741459840279,-500.0,9.669e-05,2]
[355688249,1741459840289,-584.74,9.669e-05,2]
[355688250,1741459840298,-500.0,9.669e-05,2]
[355688251,1741459840308,-500.0,9.669e-05,2]
[355688252,1741459840317,-657.39,9.669e-05,2]
[355688253,1741459840327,-500.0,9.669e-05,2]
[355688254,1741459840337,-527.45,9.669e-05,2]
[355688255,1741459840346,-500.0,9.669e-05,2]
[355688256,1741459840356,-500.0,9.669e-05,2]
[355688257,1741459840366,-1078.51,9.669e-05,2]
[355688258,1741459840376,-542.22,9.669e-05,2]
[355688259,1741459840386,-500.0,9.669e-05,2]
[355688260,1741459840397,-2345.23,9.669e-05,2]
[355688261,1741459840411,-500.0,9.669e-05,2]
[355688262,1741459840420,-500.0,9.669e-05,2]
[355688263,1741459840430,-500.0,9.669e-05,2]
[355688264,1741459840440,-500.0,9.669e-05,2]
[355688265,1741459840450,-549.81,9.669e-05,2]
[355688266,1741459840459,-500.0,9.669e-05,2]
[355688267,1741459840470,-500.0,9.669e-05,2]
[355688268,1741459840480,-500.0,9.669e-05,2]
[355688269,1741459840490,-500.0,9.669e-05,2]
[355688270,1741459840500,-664.18,9.669e-05,2]
[355688271,1741459840509,-500.0,9.669e-05,2]
[355688272,1741459840519,-500.0,9.669e-05,2]
[355688273,1741459840528,-500.0,9.669e-05,2]
[355688274,1741459840538,-739.21,9.669e-05,2]
[355688275,1741459840548,-500.0,9.669e-05,2]
[355688276,1741459840557,-785.1,9.669e-05,2]
[355688277,1741459840566,-500.0,9.669e-05,2]
[355688278,1741459840576,-500.0,9.669e-05,2]
[355688279,1741459840586,-500.0,9.669e-05,2]
[355688280,1741459840595,-1010.23,9.669e-05,2]
[355688281,1741459840604,-1102.54,9.669e-05,2]
[355688282,1741459840614,-616.58,9.669e-05,2]
[355688283,1741459840624,-500.0,9.669e-05,2]
[355688284,1741459840634,-500.0,9.669e-05,2]
[355688285,1741459840644,-2263.3,9.669e-05,2]
[355688286,1741459840653,-500.0,9.669e-05,2]
[355688287,1741459840663,-500.0,9.669e-05,2]
[355688288,1741459840673,-500.0,9.669e-05,2]
[355688289,1741459840683,-500.0,9.669e-05,2]
[355688290,1741459840693,-2197.41,9.669e-05,2]
[355688291,1741459840702,-9984.56,9.669e-05,2]
[355688292,1741459840712,-500.0,9.669e-05,2]
[355688293,1741459840721,-500.0,9.669e-05,2]
[355688294,1741459840730,-500.0,9.669e-05,2]
[355688295,1741459840740,-992.72,9.669e-05,2]
[355688296,1741459840750,-500.0,9.669e-05,2]
[355688297,1741459840760,-714.09,9.669e-05,2]
[355688298,1741459840770,-1325.92,9.669e-05,2]
[355688299,1741459840780,-500.0,9.669e-05,2]
[355688300,1741459840790,-500.0,9.669e-05,2]
[355688301,1741459840799,-500.0,9.669e-05,2]
[355688302,1741459840808,-7139.22,9.669e-05,2]
[355688303,1741459840818,-500.0,9.669e-05,2]
[355688304,1741459840828,-500.0,9.669e-05,2]
[355688305,1741459840838,-829.4,9.669e-05,2]
[355688306,1741459840848,-500.0,9.669e-05,2]
[355688307,1741459840857,-500.0,9.669e-05,2]
[355688308,1741459840867,-650.0,9.669e-05,2]
[355688309,1741459840877,-500.0,9.669e-05,2]
[355688310,1741459840886,-1424.42,9.669e-05,2]
[355688311,1741459840897,-500.0,9.669e-05,2]
[355688312,1741459840907,-1000.0,9.669e-05,2]
[355688313,1741459840916,-500.0,9.669e-05,2]
[355688314,1741459840926,-19999.99,9.67e-05,2]
[355688315,1741459840935,-1642.13,9.67e-05,2]
[355688316,1741459840945,-1136.0,9.67e-05,2]
[355688317,1741459840954,-23525.85,9.67e-05,2]
[355688318,1741459840964,-2100.0,9.7e-05,3]
[355688319,1741459840974,-1000.0,9.7e-05,2]
[355688320,1741459840983,-5623.68261494,9.717e-05,2]
[355688321,1741459840993,-162.25770135,9.72e-05,2]
[355688322,1741459841002,-2032.0,9.736e-05,2]
[355688323,1741459841011,-1278.0,9.736e-05,2]
[355688324,1741459841021,-150.0,9.736e-05,2]
[355688325,1741459841031,-571.0,9.736e-05,2]
[355688326,1741459841041,-1459.0,9.736e-05,2]
[355688327,1741459841050,-641.0,9.736e-05,2]
[355688328,1741459841060,-786.0,9.736e-05,2]
[355688329,1741459841070,-1428.0,9.736e-05,2]
[355688330,1741459841079,-907.0,9.736e-05,2]
[355688331,1741459841088,-541.0,9.736e-05,2]
[355688332,1741459841098,-1270.0,9.736e-05,2]
[355688333,1741459841107,-4042.0,9.736e-05,2]
[355688334,1741459841116,-1802.493,9.736e-05,2]
[355688335,1741459841126,-1012.0,9.736e-05,2]
[355688336,1741459841135,-150.0,9.736e-05,2]
[355688337,1741459841145,-150.0,9.736e-05,2]
[355688338,1741459841155,-503.40548968,9.754e-05,2]
[355688339,1741459841165,-500.0,9.754e-05,2]
[355688340,1741459841175,-500.0,9.754e-05,2]
[355688341,1741459841185,-618.67,9.754e-05,2]
[355688342,1741459841195,-500.0,9.754e-05,2]
[355688343,1741459841205,-500.0,9.754e-05,2]
[355688344,1741459841214,-500.0,9.754e-05,2]
[355688345,1741459841224,-500.0,9.754e-05,2]
[355688346,1741459841234,-500.0,9.754e-05,2]
[355688347,1741459841244,-524.41934499,9.754e-05,2]
[355688348,1741459841253,-500.0,9.754e-05,2]
[355688349,1741459841263,-500.0,9.754e-05,2]
[355688350,1741459841273,-500.0,9.754e-05,2]
[355688351,1741459841282,-500.0,9.754e-05,2]
[355688352,1741459841291,-500.0,9.754e-05,2]
[355688353,1741459841301,-500.0,9.754e-05,2]
[355688354,1741459841310,-500.0,9.754e-05,2]
[355688355,1741459841320,-500.0,9.754e-05,2]
[355688356,1741459841329,-500.0,9.754e-05,2]
[355688357,1741459841338,-505.9686089,9.754e-05,2]
[355688358,1741459841348,-500.0,9.754e-05,2]
[355688359,1741459841357,-500.0,9.754e-05,2]
[355688360,1741459841367,-528.78511299,9.754e-05,2]
[355688361,1741459841376,-521.42502759,9.754e-05,2]
[355688362,1741459841386,-500.0,9.754e-05,2]
[355688363,1741459841396,-500.0,9.754e-05,2]
[355688364,1741459841408,-500.0,9.754e-05,2]
[355688365,1741459841418,-500.0,9.754e-05,2]
[355688366,1741459841427,-185.98,9.754e-05,2]
[355688367,1741459841437,-500.0,9.754e-05,2]
[355688368,1741459841447,-500.0,9.754e-05,2]
[355688369,1741459841456,-500.0,9.754e-05,2]
[355688370,1741459841465,-500.0,9.754e-05,2]
[355688371,1741459841475,-504.36023459,9.754e-05,2]
[355688372,1741459841484,-500.0,9.754e-05,2]
[355688373,1741459841494,-505.61360362,9.754e-05,2]
[355688374,1741459841503,-285.18,9.754e-05,2]
[355688375,1741459841512,-500.0,9.754e-05,2]
[355688376,1741459841521,-500.0,9.754e-05,2]
[355688377,1741459841531,-500.0,9.754e-05,2]
[355688378,1741459841540,-500.0,9.754e-05,2]
[355688379,1741459841549,-500.0,9.754e-05,2]
[355688380,1741459841558,-584.12896914,9.754e-05,2]
[355688381,1741459841569,-500.0,9.754e-05,2]
[355688382,1741459841578,-500.0,9.754e-05,2]
[355688383,1741459841587,-500.0,9.754e-05,2]
[355688384,1741459841597,-371.6369068,9.754e-05,2]
[355688385,1741459841606,-1337.59,9.754e-05,2]
[355688386,1741459841615,-1086.81,9.754e-05,2]
[355688387,1741459841625,-847.3,9.754e-05,2]
[355688388,1741459841634,-500.0,9.754e-05,2]
[355688389,1741459841643,-1508.33,9.754e-05,2]
[355688390,1741459841652,-2647.51,9.754e-05,2]
[355688391,1741459841661,-1353.24,9.754e-05,2]
[355688392,1741459841671,-170.804,9.755e-05,2]
[355688393,1741459841680,-3563.41,9.755e-05,2]
[355688394,1741459841689,-500.0,9.773e-05,2]
[355688395,1741459841699,-500.0,9.773e-05,2]
[355688396,1741459841708,-547.66,9.773e-05,2]
[355688397,1741459841717,-590.91358545,9.773e-05,2]
[355688398,1741459841726,-500.0,9.773e-05,2]
[355688399,1741459841735,-538.39,9.773e-05,2]
[355688400,1741459841744,-500.0,9.773e-05,2]
[355688401,1741459841753,-615.06916118,9.773e-05,2]
[355688402,1741459841762,-500.0,9.773e-05,2]
[355688403,1741459841772,-500.0,9.773e-05,2]
[355688404,1741459841781,-500.0,9.773e-05,2]
[355688405,1741459841791,-500.0,9.773e-05,2]
[355688406,1741459841800,-500.0,9.773e-05,2]
[355688407,1741459841809,-500.0,9.773e-05,2]
[355688408,1741459841818,-500.0,9.773e-05,2]
[355688409,1741459841827,-500.0,9.773e-05,2]
[355688410,1741459841836,-500.0,9.773e-05,2]
[355688411,1741459841846,-623.67,9.773e-05,2]
[355688412,1741459841854,-500.0,9.773e-05,2]
[355688413,1741459841863,-500.0,9.773e-05,2]
[355688414,1741459841872,-500.0,9.773e-05,2]
[355688415,1741459841881,-500.0,9.773e-05,2]
[355688416,1741459841890,-500.0,9.773e-05,2]
[355688417,1741459841900,-500.0,9.773e-05,2]
[355688418,1741459841909,-500.0,9.773e-05,2]
[355688419,1741459841918,-500.0,9.773e-05,2]
[355688420,1741459841927,-500.0,9.773e-05,2]